bitfinex-derivatives/quotes_SOLF0:USTF0_20250221
["timestamp","ask_amount","ask_price","bid_price","bid_amount"]
[1740097998246,1.7268,175.12,175.06,5.7104]
[1740097998542,5.7094,175.1,175.01,15.83657031]
[1740097998942,0.03760802,175.07,175.04,0.03855718]
[1740097999946,0.03760802,175.07,175.06,5.7104]
[1740098002345,0.03760802,175.07,175.04,5.74955718]
[1740098003040,0.03760802,175.07,175.04,0.03855718]
[1740098003842,0.03760802,175.07,175.05,5.7105]
[1740098004148,0.03760802,175.07,175.04,0.03855718]
[1740098004345,0.03760802,175.07,175.06,5.7104]
[1740098012042,8.02e-06,175.07,175.06,5.7104]
[1740098016647,1.8582,175.16,175.06,5.7104]
[1740098016852,1.8582,175.16,175.15,5.7075]
[1740098018049,1.8582,175.16,175.14,5.74842905]
[1740098018846,1.8582,175.16,175.14,0.04062905]
[1740098019046,1.8582,175.16,175.05,15.83657031]
[1740098019352,5.7104,175.07,175.02,5.7116]
[1740098020253,0.03642699,175.06,175.03,0.03553615]
[1740098020553,0.03642699,175.06,175.03,5.74693615]
[1740098021455,0.03642699,175.06,175.05,5.7108]
[1740098022560,0.03642699,175.06,175.04,5.711]
[1740098022759,0.03642699,175.06,175.03,0.03553615]
[1740098023057,0.03642699,175.06,175.03,5.74673615]
[1740098024157,0.03642699,175.06,175.03,0.03553615]
[1740098024158,5.7108,175.05,175.03,0.03553615]
[1740098024559,5.74692699,175.06,175.03,0.03553615]
[1740098025460,5.7111,175.04,175.03,0.03553615]
[1740098027160,21.54747031,175.05,175.03,0.03553615]
[1740098028056,15.83657031,175.05,175.03,0.03553615]
[1740098028262,0.03642699,175.06,175.03,0.03553615]
[1740098029064,0.03642699,175.06,175.05,5.7108]
[1740098031662,0.03642699,175.06,175.03,0.03553615]
[1740098033559,0.03642699,175.06,175.03,5.74673615]
[1740098034665,5.74692699,175.06,175.03,0.03553615]
[1740098035364,5.7108,175.05,175.03,0.03553615]
[1740098036066,0.03642699,175.06,175.03,0.03553615]
[1740098036560,0.03642699,175.06,175.03,15.87210646]
[1740098036759,0.03642699,175.06,175.05,5.7108]
[1740098039664,15.83657031,175.16,175.03,15.87210646]
[1740098039865,15.83657031,175.16,175.11,5.7088]
[1740098040263,15.83657031,175.16,175.06,15.83657031]
[1740098040766,13.2866,175.18,175.06,15.83657031]
[1740098040967,0.03644365,175.13,175.09,0.03945258]
[1740098041469,0.03644365,175.13,175.12,5.7085]
[1740098044572,0.03644365,175.13,175.11,5.7087]
[1740098044772,0.03644365,175.13,175.09,0.03945258]
[1740098045672,0.03644365,175.13,175.1,5.7089]
[1740098045875,10.62451869,175.21,175.1,15.83657031]
[1740098046073,10.62451869,175.21,175.13,15.83657031]
[1740098046571,10.62451869,175.21,175.19,5.7062]
[1740098046770,10.62451869,175.21,175.16,15.83657031]
[1740098047163,0.0376797,175.2,175.17,0.03904723]
[1740098047562,0.0376797,175.2,175.19,5.7062]
[1740098050170,10.62451869,175.28,175.19,15.83657031]
[1740098050775,15.97301869,175.29,175.26,5.7039]
[1740098050965,12.31111869,175.29,175.19,15.83657031]
[1740098051166,28.147689,175.29,175.17,3.5787]
[1740098051473,0.03881206,175.26,175.22,0.03655391]
[1740098054177,5.74301206,175.26,175.22,5.74165391]
[1740098054876,0.03881206,175.26,175.22,0.03655391]
[1740098055070,15.87538237,175.26,175.22,0.03655391]
[1740098055478,5.7049,175.23,175.22,0.03655391]
[1740098056179,15.83657031,175.23,175.12,3.5204]
[1740098056571,15.83657031,175.23,175.15,5.7073]
[1740098056768,15.83657031,175.23,175.12,3.5204]
[1740098056971,15.83657031,175.23,175.18,5.7065]
[1740098057269,0.04094028,175.22,175.19,0.04332651]
[1740098057469,0.04094028,175.22,175.2,5.7056]
[1740098057672,0.04094028,175.22,175.19,0.04332651]
[1740098058070,0.04094028,175.22,175.19,5.74932651]
[1740098058273,5.74614028,175.22,175.19,5.74932651]
[1740098058981,0.04094028,175.22,175.2,5.7059]
[1740098059573,0.04094028,175.22,175.19,5.74922651]
[1740098059974,0.04094028,175.22,175.19,0.04332651]
[1740098060678,0.04094028,175.22,175.2,5.7059]
[1740098061580,0.04094028,175.22,175.19,0.04332651]
[1740098061769,5.74634028,175.22,175.19,5.74942651]
[1740098065280,0.04094028,175.22,175.2,5.7058]
[1740098066785,0.04094028,175.22,175.19,0.04332651]
[1740098067485,5.7059,175.2,175.19,0.04332651]
[1740098067686,21.54247031,175.2,175.19,0.04332651]
[1740098068086,15.83657031,175.2,175.11,1.7385]
[1740098068586,5.707,175.17,175.14,5.7076]
[1740098069088,5.74550129,175.17,175.14,5.74460449]
[1740098069985,0.03850129,175.17,175.14,0.03700449]
[1740098070587,5.7075,175.15,175.14,0.03700449]
[1740098072882,5.7082,175.13,175.06,1.7636]
[1740098073188,15.83657031,175.14,175.06,1.7636]
[1740098073392,3.6447,175.16,175.04,5.711]
[1740098073393,15.83657031,175.11,175.04,5.711]
[1740098073690,15.83657031,175.11,175.0,1.7864]
[1740098073879,7.56,175.12,175.01,15.83657031]
[1740098074291,0.04002089,175.07,175.04,0.02920158]
[1740098074589,0.04002089,175.07,175.06,5.7104]
[1740098074990,0.04002089,175.07,175.05,5.7107]
[1740098075291,0.04002089,175.07,175.04,0.02920158]
[1740098076690,0.04002089,175.07,175.06,5.7104]
[1740098077090,3.6447,175.16,175.05,1.7775]
[1740098077296,3.6447,175.16,175.11,5.7086]
[1740098077792,3.6447,175.16,175.05,3.4719]
[1740098077987,9.352,175.16,175.11,5.7086]
[1740098078193,0.03908658,175.12,175.11,5.7086]
[1740098082493,8.658e-05,175.12,175.11,5.7086]
[1740098088300,8.658e-05,175.12,175.09,0.04309654]
[1740098089003,8.658e-05,175.12,175.1,5.7091]
[1740098089199,8.658e-05,175.12,175.09,0.04309654]
[1740098090204,8.658e-05,175.12,175.11,5.7088]
[1740098094107,5.70888658,175.12,175.09,0.04309654]
[1740098094305,8.658e-05,175.12,175.09,0.04309654]
[1740098095810,5.7091,175.1,175.09,0.04309654]
[1740098096312,5.7106,175.06,175.03,5.7114]
[1740098097011,15.83657031,175.11,175.0,5.3737]
[1740098097213,15.70195501,175.13,175.04,15.83657031]
[1740098097512,0.03781218,175.07,175.04,15.87517766]
[1740098097708,1.218e-05,175.07,175.04,15.87517766]
[1740098097909,1.218e-05,175.07,175.06,5.7104]
[1740098098714,3.4202,175.18,175.05,15.83657031]
[1740098098915,3.4202,175.18,175.1,15.83657031]
[1740098099211,15.83657031,175.17,175.11,5.7087]
[1740098099410,15.83657031,175.17,175.07,15.83657031]
[1740098099812,0.03957167,175.14,175.12,5.7084]
[1740098100314,5.74767167,175.14,175.1,5.74749766]
[1740098100719,5.74767167,175.14,175.1,0.03859766]
[1740098100922,0.03957167,175.14,175.1,0.03859766]
[1740098102525,0.03957167,175.14,175.13,5.7082]
[1740098105619,9.2441,175.22,175.13,15.83657031]
[1740098105819,0.4019995,175.23,175.13,15.83657031]
[1740098106026,15.83657031,175.26,175.16,15.83657031]
[1740098106215,15.83657031,175.26,175.17,5.7067]
[1740098106419,15.83657031,175.26,175.13,15.83657031]
[1740098106725,5.7043,175.25,175.13,15.83657031]
[1740098106920,15.83657031,175.26,175.21,5.7053]
[1740098107118,0.03649054,175.21,175.13,15.83657031]
[1740098107314,5.705,175.23,175.22,0.04219796]
[1740098107520,15.83657031,175.26,175.13,15.83657031]
[1740098107724,0.03981922,175.24,175.21,0.0362916]
[1740098108623,0.03981922,175.24,175.21,5.7417916]
[1740098109224,0.03981922,175.24,175.21,0.0362916]
[1740098109419,0.03981922,175.24,175.22,5.705]
[1740098109624,0.03981922,175.24,175.21,0.0362916]
[1740098110014,0.03981922,175.24,175.22,5.7052]
[1740098110420,0.03981922,175.24,175.21,0.0362916]
[1740098110824,0.03981922,175.24,175.23,5.7049]
[1740098114319,0.03981922,175.24,175.21,0.0362916]
[1740098115824,5.7052,175.23,175.21,0.0362916]
[1740098117529,0.03981922,175.24,175.21,0.0362916]
[1740098118325,5.74461922,175.24,175.21,0.0362916]
[1740098118528,0.03981922,175.24,175.21,0.0362916]
[1740098119122,0.03981922,175.24,175.22,5.7052]
[1740098119528,0.03981922,175.24,175.23,5.7049]
[1740098121631,0.03981922,175.24,175.21,0.0362916]
[1740098122227,5.74451922,175.24,175.21,5.7416916]
[1740098122937,5.74451922,175.24,175.22,5.7052]
[1740098123235,0.03981922,175.24,175.22,5.7052]
[1740098124026,5.74441922,175.24,175.21,5.7415916]
[1740098124238,0.03981922,175.24,175.21,0.0362916]
[1740098124429,5.74461922,175.24,175.21,0.0362916]
[1740098124735,5.74461922,175.24,175.21,5.7415916]
[1740098125438,5.74461922,175.24,175.22,5.7051]
[1740098126137,5.7052,175.22,175.21,0.0362916]
[1740098127131,5.7067,175.18,175.13,15.83657031]
[1740098127328,15.83657031,175.21,175.11,1.7852]
[1740098127634,1.7188,175.23,175.13,15.83657031]
[1740098128437,5.7069,175.17,175.16,0.03622209]
[1740098129032,0.03679853,175.2,175.16,0.03622209]
[1740098129541,5.7064,175.19,175.16,5.74342209]
[1740098129731,0.03679853,175.2,175.16,0.03622209]
[1740098130132,0.03679853,175.2,175.19,5.7062]
[1740098130540,0.03679853,175.2,175.19,21.54277031]
[1740098131540,9.853e-05,175.2,175.19,21.54277031]
[1740098135344,15.83657031,175.33,175.26,5.7037]
[1740098136649,0.03812332,175.31,175.28,0.04209862]
[1740098137943,5.703,175.29,175.28,0.04209862]
[1740098141947,0.03812332,175.31,175.28,15.87866893]
[1740098142344,0.92010584,175.41,175.36,5.7005]
[1740098142544,200.98315389,175.42,175.33,15.83657031]
[1740098142745,10.5620287,175.41,175.33,15.83657031]
[1740098143337,200.98315389,175.42,175.33,15.83657031]
[1740098143541,0.03898196,175.39,175.35,0.03649162]
[1740098144248,0.03898196,175.39,175.37,5.7001]
[1740098144849,0.03898196,175.39,175.38,5.7]
[1740098146446,0.03898196,175.39,175.36,5.7004]
[1740098149046,0.03898196,175.39,175.35,0.03649162]
[1740098150749,0.03898196,175.39,175.35,5.73729162]
[1740098150948,0.03898196,175.39,175.35,0.03649162]
[1740098152359,10.57995982,175.47,175.36,15.83657031]
[1740098152546,10.57995982,175.47,175.42,15.83657031]
[1740098152752,5.3125,175.52,175.42,15.83657031]
[1740098152947,5.6962,175.5,175.42,15.83657031]
[1740098153150,5.3125,175.52,175.42,15.83657031]
[1740098153453,16.25911743,175.53,175.45,15.87940471]
[1740098153655,0.03990997,175.49,175.45,15.87940471]
[1740098154755,0.03990997,175.49,175.48,5.6968]
[1740098155157,0.03990997,175.49,175.45,15.87940471]
[1740098155860,0.03990997,175.49,175.45,21.57710471]
[1740098156259,0.03990997,175.49,175.47,5.6968]
[1740098157359,0.03990997,175.49,175.48,5.6968]
[1740098157750,0.03990997,175.49,175.48,21.53337031]
[1740098159260,0.03990997,175.49,175.48,15.83657031]
[1740098159560,0.03990997,175.49,175.45,15.87940471]
[1740098159756,0.03990997,175.49,175.45,0.0428344]
[1740098160349,5.697,175.48,175.45,0.0428344]
[1740098160758,5.6968,175.48,175.45,0.0428344]
[1740098162059,0.03990997,175.49,175.45,0.0428344]
[1740098162359,5.6974,175.47,175.45,0.0428344]
[1740098163057,5.6969,175.48,175.45,0.0428344]
[1740098164463,5.73660997,175.49,175.45,0.0428344]
[1740098164660,0.03990997,175.49,175.45,5.7403344]
[1740098165053,5.6968,175.48,175.45,5.7403344]
[1740098165658,0.03990997,175.49,175.45,5.7403344]
[1740098165859,5.6971,175.47,175.45,5.7403344]
[1740098166059,0.03990997,175.49,175.45,0.0428344]
[1740098166360,1.85450997,175.49,175.45,0.0428344]
[1740098166869,3.501,175.48,175.45,0.0428344]
[1740098167163,5.6974,175.46,175.45,0.0428344]
[1740098167354,5.6974,175.46,175.39,5.6995]
[1740098167355,15.83657031,175.47,175.36,16.29216049]
[1740098167560,15.83657031,175.47,175.36,0.45559018]
[1740098167862,3.501,175.48,175.36,0.45559018]
[1740098167863,15.83657031,175.44,175.36,0.45559018]
[1740098168165,15.83657031,175.44,175.32,5.1699]
[1740098168467,15.83657031,175.41,175.31,30.78492372]
[1740098168767,0.0418827,175.4,175.36,0.04129691]
[1740098169161,15.83657031,175.44,175.33,15.83657031]
[1740098169364,15.83657031,175.44,175.38,5.6999]
[1740098169365,0.03655437,175.4,175.38,5.6999]
[1740098169560,0.03655437,175.4,175.36,15.87699817]
[1740098170266,0.03655437,175.4,175.39,21.53627031]
[1740098170567,1.8146,175.49,175.39,15.83657031]
[1740098170763,17.57097031,175.53,175.42,15.83657031]
[1740098171561,0.04131515,175.49,175.46,0.03881898]
[1740098171762,0.04131515,175.49,175.46,5.73621898]
[1740098171964,0.04131515,175.49,175.46,0.03881898]
[1740098172370,0.04131515,175.49,175.48,5.6968]
[1740098174164,0.04131515,175.49,175.46,0.03881898]
[1740098174563,5.73781515,175.49,175.46,0.03881898]
[1740098174759,0.04131515,175.49,175.46,0.03881898]
[1740098176172,0.04131515,175.49,175.46,5.73611898]
[1740098176471,0.04131515,175.49,175.46,0.03881898]
[1740098176872,5.73781515,175.49,175.46,0.03881898]
[1740098177771,5.73781515,175.49,175.46,5.73621898]
[1740098178172,0.04131515,175.49,175.46,0.03881898]
[1740098178370,0.04131515,175.49,175.48,5.6968]
[1740098192377,5.6968,175.48,175.46,0.03881898]
[1740098195081,5.6968,175.48,175.46,5.73621898]
[1740098195274,5.73791515,175.49,175.46,5.73621898]
[1740098195680,0.04131515,175.49,175.46,5.73621898]
[1740098195982,0.04131515,175.49,175.47,5.6971]
[1740098196183,0.04131515,175.49,175.46,0.03881898]
[1740098197874,0.04131515,175.49,175.48,5.6968]
[1740098199082,0.04131515,175.49,175.46,0.03881898]
[1740098199886,0.04131515,175.49,175.47,5.697]
[1740098201285,0.04131515,175.49,175.46,0.03881898]
[1740098201681,5.6971,175.47,175.46,0.03881898]
[1740098202286,5.6991,175.41,175.31,31.70472946]
[1740098202485,5.6991,175.41,175.32,15.83657031]
[1740098202784,5.6993,175.41,175.36,5.7006]
[1740098203688,0.03829053,175.4,175.37,0.04310565]
[1740098205690,0.03829053,175.4,175.37,5.74320565]
[1740098206496,0.03829053,175.4,175.37,0.04310565]
[1740098206497,5.7,175.38,175.37,0.04310565]
[1740098206887,5.7,175.38,175.3,3.6689]
[1740098206888,0.03829053,175.4,175.29,15.83657031]
[1740098207093,5.7006,175.37,175.32,5.7017]
[1740098207592,5.7008,175.36,175.32,5.7017]
[1740098207987,15.83657031,175.41,175.31,5.7022]
[1740098208188,0.03978694,175.36,175.32,0.03921087]
[1740098208796,15.83657031,175.35,175.32,0.03921087]
[1740098209091,5.7017,175.33,175.32,0.03921087]
[1740098209996,17.63077031,175.35,175.23,16.28256816]
[1740098210194,15.83657031,175.32,175.23,0.44599785]
[1740098210389,1.7942,175.35,175.2,31.70472946]
[1740098210390,15.83657031,175.29,175.2,31.70472946]
[1740098210791,1.7181,175.28,175.2,31.70472946]
[1740098211096,0.04352463,175.26,175.22,0.03636193]
[1740098211792,0.04352463,175.26,175.25,5.7043]
[1740098212794,1.7942,175.35,175.32,5.7019]
[1740098213193,1.7942,175.35,175.27,15.83657031]
[1740098213499,1.7942,175.35,175.3,5.7023]
[1740098214001,0.0415431,175.34,175.31,5.74217645]
[1740098214902,0.0415431,175.34,175.31,0.03997645]
[1740098215097,15.83657031,175.32,175.21,15.83657031]
[1740098215299,15.83657031,175.32,175.19,1.825]
[1740098215598,5.7033,175.28,175.19,1.825]
[1740098215799,15.83657031,175.32,175.19,1.825]
[1740098216202,0.03607061,175.27,175.24,0.03791474]
[1740098216508,15.83657031,175.29,175.24,0.03791474]
[1740098216696,0.03846103,175.27,175.25,5.7043]
[1740098216896,0.03846103,175.27,175.24,0.03791474]
[1740098217898,0.03846103,175.27,175.26,5.7039]
[1740098218597,1.8607,175.34,175.24,15.87448505]
[1740098218798,1.7942,175.35,175.34,5.7013]
[1740098218998,1.7181,175.37,175.27,15.83657031]
[1740098219199,13.2994,175.4,175.36,5.7007]
[1740098219399,7.6,175.4,175.3,15.83657031]
[1740098220005,0.04195718,175.37,175.33,0.0372296]
[1740098220592,15.83657031,175.35,175.33,0.0372296]
[1740098220793,5.7013,175.34,175.33,0.0372296]
[1740098221194,15.83657031,175.35,175.24,15.83657031]
[1740098221400,15.83657031,175.29,175.19,3.5996]
[1740098221899,5.7033,175.28,175.19,3.5996]
[1740098222304,0.03838437,175.25,175.22,0.03834636]
[1740098222699,5.7046,175.24,175.22,0.03834636]
[1740098223106,0.03838437,175.25,175.22,0.03834636]
[1740098223296,5.7046,175.24,175.22,0.03834636]
[1740098224602,0.03838437,175.25,175.22,0.03834636]
[1740098224806,0.03838437,175.25,175.23,5.7049]
[1740098225406,0.03838437,175.25,175.22,5.74354636]
[1740098225706,0.03838437,175.25,175.22,0.03834636]
[1740098226005,0.03838437,175.25,175.24,5.7046]
[1740098226306,0.03838437,175.25,175.22,0.03834636]
[1740098226504,5.74278437,175.25,175.22,0.03834636]
[1740098226903,0.03838437,175.25,175.22,0.03834636]
[1740098227307,5.7049,175.23,175.22,0.03834636]
[1740098227907,5.7057,175.21,175.14,4.10517413]
[1740098228301,5.7057,175.21,175.17,5.7068]
[1740098228608,5.706,175.2,175.14,0.44627413]
[1740098229104,0.04068376,175.19,175.16,5.7071]
[1740098229510,0.04068376,175.19,175.16,0.03716822]
[1740098229705,0.04068376,175.19,175.16,5.74416822]
[1740098231303,0.04068376,175.19,175.17,5.7069]
[1740098231508,0.04068376,175.19,175.16,0.03716822]
[1740098232212,5.7067,175.18,175.16,0.03716822]
[1740098232415,0.04068376,175.19,175.16,0.03716822]
[1740098232808,5.7068,175.18,175.16,0.03716822]
[1740098234315,0.04068376,175.19,175.16,0.03716822]
[1740098234812,0.04068376,175.19,175.16,5.74426822]
[1740098235709,5.74688376,175.19,175.16,5.74426822]
[1740098236611,5.7066,175.18,175.16,0.03716822]
[1740098237110,5.74698376,175.19,175.16,5.74436822]
[1740098237913,5.7066,175.18,175.16,0.03716822]
[1740098238115,25.36692036,175.19,175.16,0.03716822]
[1740098238616,25.36692036,175.19,175.07,1.7496]
[1740098238811,25.3262366,175.16,175.07,1.7496]
[1740098239013,5.7084,175.13,175.1,5.7089]
[1740098239209,25.3262366,175.16,175.07,1.7496]
[1740098239606,25.3262366,175.16,175.12,5.7083]
[1740098239815,0.04166625,175.13,175.12,5.7083]
[1740098242215,0.04166625,175.13,175.11,5.7087]
[1740098242617,0.04166625,175.13,175.12,5.7085]
[1740098243009,0.04166625,175.13,175.1,0.02197149]
[1740098243813,6.625e-05,175.13,175.12,5.7085]
[1740098244519,7.6,175.25,175.22,5.7052]
[1740098244720,7.6,175.25,175.12,5.7085]
[1740098244721,7.6,175.25,175.16,15.83262017]
[1740098245121,13.3045,175.25,175.2,5.7057]
[1740098245419,15.83262017,175.27,175.2,5.7057]
[1740098245625,15.83262017,175.24,175.14,3.6856]
[1740098245820,15.83262017,175.24,175.22,0.04210158]
[1740098246123,15.83262017,175.24,175.21,6.86e-05]
[1740098246423,15.83262017,175.24,175.14,1.8589]
[1740098246718,15.83262017,175.21,175.14,1.8589]
[1740098247022,5.7066,175.18,175.14,7.5667]
[1740098247223,5.7066,175.18,175.14,5.7078]
[1740098247419,0.04136332,175.18,175.14,0.02063774]
[1740098247616,5.7074,175.16,175.14,0.02063774]
[1740098248022,0.04136332,175.18,175.16,5.7069]
[1740098248222,0.04136332,175.18,175.14,0.02063774]
[1740098248917,15.87398349,175.18,175.14,0.02063774]
[1740098250024,21.54012017,175.15,175.14,0.02063774]
[1740098250221,15.83262017,175.15,175.04,15.83262017]
[1740098250422,15.83262017,175.12,175.02,3.5851]
[1740098251428,0.03634947,175.09,175.02,3.5851]
[1740098251628,0.03634947,175.09,175.02,1.76]
[1740098252432,15.86896964,175.09,175.01,1.787]
[1740098252625,0.03634947,175.09,175.01,1.787]
[1740098254133,0.03634947,175.09,175.07,5.7099]
[1740098254928,0.03634947,175.09,175.08,5.7098]
[1740098256334,0.03634947,175.09,175.01,1.787]
[1740098256728,5.74594947,175.09,175.01,1.787]
[1740098257236,0.03634947,175.09,175.01,1.787]
[1740098257933,5.74604947,175.09,175.01,1.787]
[1740098258330,5.74604947,175.09,175.06,5.7104]
[1740098258736,0.03634947,175.09,175.01,1.787]
[1740098259037,0.03634947,175.09,175.05,5.7105]
[1740098259230,0.03634947,175.09,175.01,1.787]
[1740098260337,0.03634947,175.09,175.08,5.7098]
[1740098263338,1.8032,175.17,175.07,25.38407741]
[1740098263640,1.8032,175.17,175.08,1.866]
[1740098263838,5.7068,175.18,175.08,1.866]
[1740098264040,5.7068,175.18,175.08,3.6728]
[1740098264539,0.03725304,175.15,175.11,0.03634947]
[1740098266440,0.03725304,175.15,175.14,5.7078]
[1740098267245,0.03725304,175.15,175.11,0.03634947]
[1740098267945,0.03725304,175.15,175.13,5.708]
[1740098268241,0.03725304,175.15,175.11,0.03634947]
[1740098269551,0.03725304,175.15,175.14,5.7078]
[1740098269948,5.304e-05,175.15,175.14,5.7078]
[1740098272050,5.304e-05,175.15,175.11,0.03634947]
[1740098272347,5.70765304,175.15,175.11,0.03634947]
[1740098272547,5.70765304,175.15,175.12,5.7083]
[1740098273144,5.70765304,175.15,175.11,0.03634947]
[1740098273453,5.304e-05,175.15,175.13,5.708]
[1740098274248,5.304e-05,175.15,175.14,5.7078]
[1740098278656,5.304e-05,175.15,175.12,5.7082]
[1740098278955,5.304e-05,175.15,175.11,0.03634947]
[1740098280456,5.304e-05,175.15,175.14,5.7078]
[1740098291962,15.84433447,175.15,175.11,0.03634947]
[1740098292462,5.7085,175.12,175.11,0.03634947]
[1740098293064,5.7079,175.14,175.11,5.74514947]
[1740098295467,5.7079,175.14,175.12,5.7085]
[1740098297166,15.84433447,175.15,175.11,0.03634947]
[1740098297366,15.84433447,175.15,175.14,5.7078]
[1740098297567,15.84433447,175.15,175.11,0.03634947]
[1740098298162,15.84433447,175.15,175.13,5.708]
[1740098299367,21.55193447,175.15,175.12,5.7083]
[1740098300069,5.7079,175.14,175.12,5.7083]
[1740098300365,15.84433447,175.15,175.11,0.03634947]
[1740098300563,5.7085,175.12,175.11,0.03634947]
[1740098301771,15.84433447,175.15,175.11,0.03634947]
[1740098302068,5.7084,175.13,175.11,0.03634947]
[1740098302368,5.708,175.14,175.11,5.74494947]
[1740098302869,5.7084,175.13,175.11,0.03634947]
[1740098304073,15.84433447,175.15,175.11,0.03634947]
[1740098304276,5.7081,175.14,175.11,5.74494947]
[1740098305374,15.84433447,175.15,175.11,5.74494947]
[1740098305671,5.7082,175.13,175.11,5.74494947]
[1740098306072,15.84433447,175.15,175.11,5.74494947]
[1740098306272,5.708,175.14,175.11,5.74494947]
[1740098309669,5.7082,175.13,175.11,5.74494947]
[1740098309870,15.84433447,175.15,175.11,0.03634947]
[1740098310575,5.7085,175.12,175.11,0.03634947]
[1740098311577,21.55278143,175.12,175.11,0.03634947]
[1740098313078,5.708,175.14,175.11,0.03634947]
[1740098313375,15.84433447,175.15,175.11,5.74494947]
[1740098313577,15.84433447,175.15,175.11,0.03634947]
[1740098313779,5.7082,175.13,175.11,0.03634947]
[1740098313977,15.84433447,175.15,175.11,0.03634947]
[1740098314378,15.84433447,175.15,175.11,5.74494947]
[1740098314584,15.84433447,175.15,175.11,0.03634947]
[1740098314882,5.304e-05,175.15,175.11,0.03634947]
[1740098316377,5.70755304,175.15,175.12,5.7084]
[1740098318775,5.304e-05,175.15,175.11,0.03634947]
[1740098319475,5.304e-05,175.15,175.14,5.7078]
[1740098321281,5.304e-05,175.15,175.11,0.03634947]
[1740098322077,5.70775304,175.15,175.12,5.7084]
[1740098322278,5.304e-05,175.15,175.12,5.7084]
[1740098322583,5.304e-05,175.15,175.11,0.03634947]
[1740098322984,5.7083,175.13,175.11,0.03634947]
[1740098323383,5.304e-05,175.15,175.11,0.03634947]
[1740098324779,15.84433447,175.15,175.11,0.03634947]
[1740098324982,5.304e-05,175.15,175.11,0.03634947]
[1740098325282,5.304e-05,175.15,175.14,5.7078]
[1740098328986,5.304e-05,175.15,175.13,5.708]
[1740098329778,5.70755304,175.15,175.13,5.708]
[1740098330384,5.304e-05,175.15,175.13,5.708]
[1740098331288,5.70755304,175.15,175.12,5.7084]
[1740098333089,5.304e-05,175.15,175.13,5.7082]
[1740098333587,5.70755304,175.15,175.13,5.7082]
[1740098334680,5.304e-05,175.15,175.13,5.7082]
[1740098335187,5.304e-05,175.15,175.11,0.03634947]
[1740098335385,5.70765304,175.15,175.12,5.7083]
[1740098336690,15.85201537,175.15,175.12,5.7083]
[1740098338590,10.14441537,175.15,175.13,5.7079]
[1740098338787,10.14441537,175.15,175.11,0.03634947]
[1740098339189,10.14441537,175.15,175.13,5.708]
[1740098340693,10.14441537,175.15,175.11,0.03634947]
[1740098340892,5.304e-05,175.15,175.14,5.7078]
[1740098341294,5.304e-05,175.15,175.11,0.03634947]
[1740098341593,15.85211537,175.15,175.11,0.03634947]
[1740098341789,10.14441537,175.15,175.11,0.03634947]
[1740098341990,10.14441537,175.15,175.14,5.7078]
[1740098342185,5.304e-05,175.15,175.14,5.7078]
[1740098345889,5.304e-05,175.15,175.14,15.85216233]
[1740098346393,5.304e-05,175.15,175.13,5.7081]
[1740098346996,5.708,175.14,175.11,5.74484947]
[1740098347495,5.304e-05,175.15,175.12,10.14436233]
[1740098347693,5.304e-05,175.15,175.14,15.85216233]
[1740098354086,10.14441537,175.15,175.11,0.03634947]
[1740098354289,15.85276233,175.13,175.11,0.03634947]
[1740098354487,10.14436233,175.13,175.11,0.03634947]
[1740098355203,5.7085,175.12,175.11,0.03634947]
[1740098355999,15.85256233,175.13,175.11,0.03634947]
[1740098356394,10.14441537,175.15,175.11,0.03634947]
[1740098356602,5.304e-05,175.15,175.11,0.03634947]
[1740098357403,5.304e-05,175.15,175.14,5.7078]
[1740098359504,5.304e-05,175.15,175.11,0.03634947]
[1740098359706,5.7079,175.14,175.11,5.74494947]
[1740098360203,5.304e-05,175.15,175.14,5.7078]
[1740098360903,5.304e-05,175.15,175.11,0.03634947]
[1740098361502,5.304e-05,175.15,175.13,5.7082]
[1740098361891,5.304e-05,175.15,175.11,0.03634947]
[1740098362603,5.7081,175.14,175.11,0.03634947]
[1740098364005,5.304e-05,175.15,175.11,0.03634947]
[1740098364204,5.70765304,175.15,175.12,5.7083]
[1740098364699,5.70765304,175.15,175.11,0.03634947]
[1740098364900,5.70765304,175.15,175.13,5.7081]
[1740098365106,5.304e-05,175.15,175.13,5.7081]
[1740098366406,5.70755304,175.15,175.13,5.7081]
[1740098367505,5.70755304,175.15,175.12,5.7084]
[1740098367810,5.304e-05,175.15,175.11,0.03634947]
[1740098368510,5.304e-05,175.15,175.13,5.708]
[1740098370616,5.70755304,175.15,175.11,0.03634947]
[1740098370809,5.304e-05,175.15,175.11,0.03634947]
[1740098371305,5.7085,175.12,175.11,0.03634947]
[1740098373619,15.84755524,175.13,175.01,34.26713339]
[1740098373919,3.4019,175.12,175.01,34.26713339]
[1740098374119,5.7092,175.1,175.01,34.26713339]
[1740098374816,0.04367884,175.07,175.04,0.03719999]
[1740098375316,0.04367884,175.07,175.06,5.7104]
[1740098377517,0.04367884,175.07,175.04,0.03719999]